{"text_format":"1","workbook":"xlsx","n_sheets":2,"sheets":["JOAF","Лист1"],"not_rendered":{"charts":0,"images":0,"macros":1,"external_links":0,"defined_names":6,"comments":0,"pivot_tables":0},"unopened":[],"bounds":{"document_bytes":16777216,"sheet_cells":100000,"rows_first":2000,"rows_last":500,"rows_between":2000,"halvings":0,"cell_chars":16384,"cell_head_chars":4096},"cells_cut":0,"cells_raw":0,"read":"whole","date_system":"1900"}

{"sheet":"JOAF","index":0,"n_rows":119,"n_cols":15,"rows_kept":119,"cut":false,"hidden":false,"merged":[[63,7,63,8],[64,5,64,6],[0,6,0,8],[5,2,5,8],[6,2,6,8],[14,8,15,8],[7,2,8,5],[14,1,14,2],[14,3,14,7],[1,2,2,8],[3,1,4,1],[15,3,15,6],[3,7,4,8],[7,7,10,8],[1,1,2,1],[11,2,11,5],[7,1,8,1],[9,1,10,1],[67,3,67,4],[25,18,31,18],[32,18,37,18],[22,18,24,18],[45,8,46,8],[37,3,37,6],[44,3,44,6],[22,4,22,6],[53,3,53,8],[55,3,55,8],[56,3,56,8],[57,3,57,8],[60,1,60,4],[61,1,61,4],[45,1,46,1],[20,1,23,1],[3,2,4,5],[3,6,4,6],[24,2,31,2],[31,3,31,6],[16,4,16,6],[17,4,17,6],[18,4,18,6],[20,4,20,6],[9,2,10,5],[7,6,10,6],[16,2,19,2],[23,3,23,6],[19,3,19,6],[20,2,23,2],[21,4,21,6],[24,1,31,1],[43,4,43,6],[16,1,19,1],[63,3,63,4],[32,1,37,1],[32,2,37,2],[38,1,44,1],[38,2,44,2],[38,4,38,6],[39,4,39,6],[45,2,46,2],[55,1,57,1],[40,4,40,6],[48,1,53,1],[61,5,61,8],[41,4,41,6],[24,4,24,6],[25,4,25,6],[26,4,26,6],[27,4,27,6],[28,4,28,6],[11,7,11,8],[12,2,12,8],[67,6,67,8],[65,5,65,8],[29,4,29,6],[30,4,30,6],[48,3,48,8],[49,3,49,8],[50,3,50,8],[51,3,51,8],[52,3,52,8],[62,1,62,4],[64,1,64,4],[65,1,65,4],[66,1,66,4],[42,4,42,6]]}
[null,"JOB OPENING APPLICATION FORM                                          ",null,null,null,null,"JOAF-000-000-2014-Template"]
[null,"  Department",null,null,null,null,null,null,null,null,null,null,"Manual Worker"]
[null,null,null,null,null,null,null,null,null,null,null,null,"Professional"]
[null,"  Position title",null,null,null,null,"Level","Manual_Worker",null,null,null,null,"Manager"]
[]
[null,"  Supervisor"]
[null,"  Place of work",null,null,null,null,null,null,null,null,null,null,"New Position"]
[null,"  Job opening reason",null,null,null,null,"  Occupation",null,null,null,null,null,"Replacement"]
[]
[null,"  Request urgency"]
[null,null,null,null,null,null,null,null,null,null,null,null,"Full Time"]
[null,"  English skills",null,null,null,null,"Ukrainian skills",null,null,null,null,null,"Part Time"]
[null,"  Test/Additional Task",null,null,null,null,null,null,null,null,null,null,"Termination contract"]
[]
[null,"Group",null,"Component",null,null,null,null,"% of Total",null,null,null,"up to 20 working days"]
[null,"Name","Value","Name",null,null,null,"Value",null,null,null,null,"20-35 working days"]
[null,"Education & Qualifications",null,1,null,null,null,null,{"$f":"IF($C$17*H17=0,\"\",$C$17*H17)","v":""},null,null,null,"60 working days"]
[null,null,null,2,null,null,null,null,{"$f":"IF($C$17*H18=0,\"\",$C$17*H18)","v":""}]
[null,null,null,3,null,null,null,null,{"$f":"IF($C$17*H19=0,\"\",$C$17*H19)","v":""},null,null,null,"Elementary"]
[null,null,null,"Total",null,null,null,{"$f":"SUM(H17:H19)","v":0},{"$f":"SUM(I17:I19)","v":0},null,null,null,"Pre-Intermediate"]
[null,"Job Experience",null,1,null,null,null,null,{"$f":"IF($C$21*H21=0,\"\",$C$21*H21)","v":""},null,null,null,"Intermediate"]
[null,null,null,2,null,null,null,null,{"$f":"IF($C$21*H22=0,\"\",$C$21*H22)","v":""},null,null,null,"Upper-Intermediate"]
[null,null,null,3,null,null,null,null,{"$f":"IF($C$21*H23=0,\"\",$C$21*H23)","v":""},null,null,null,"Advanced"]
[null,null,null,"Total",null,null,null,{"$f":"SUM(H21:H23)","v":0},{"$f":"SUM(I21:I23)","v":0},null,null,null,"Proficient"]
[null,"Special Knowledge & Skills",null,1,null,null,null,null,{"$f":"IF($C$25*H25=0,\"\",$C$25*H25)","v":""}]
[null,null,null,2,null,null,null,null,"",null,null,null,"Intermediate"]
[null,null,null,3,null,null,null,null,"",null,null,null,"Advanced"]
[null,null,null,4,null,null,null,null,"",null,null,null,"Native"]
[null,null,null,5,null,null,null,null,""]
[null,null,null,6,null,null,null,null,"",null,null,null,0]
[null,null,null,7,null,null,null,null,"",null,null,null,{"$f":"M30+5%","v":0.05}]
[null,null,null,"Total",null,null,null,{"$f":"SUM(H25:H31)","v":0},{"$f":"SUM(I25:I31)","v":0},null,null,null,{"$f":"M31+5%","v":0.1}]
[null,"Basic Competencies",0.15000000000000002,1,"Client orientation ",null,null,null,{"$f":"IF($C$33*H33=0,\"\",$C$33*H33)","v":""},null,null,null,0.15000000000000002]
[null,null,null,2,"Team work ",null,null,null,{"$f":"IF($C$33*H34=0,\"\",$C$33*H34)","v":""},null,null,null,0.2]
[null,null,null,3,"Ethics and integrity",null,null,null,"",null,null,null,{"$f":"M34+5%","v":0.25}]
[null,null,null,4,"Quality and result orientation ",null,null,null,"",null,null,null,0.3]
[null,null,null,5,"Flexibility  ",null,null,null,"",null,null,null,0.35]
[null,null,null,"Total",null,null,null,{"$f":"SUM(H33:H37)","v":0},{"$f":"SUM(I33:I37)","v":0},null,null,null,0.39999999999999997]
[null,"Professional Competencies",null,1," ",null,null,null,{"$f":"IF($C$39*H39=0,\"\",$C$39*H39)","v":""},null,null,null,{"$f":"M38+5%","v":0.44999999999999996}]
[null,null,null,2," ",null,null,null,{"$f":"IF($C$39*H40=0,\"\",$C$39*H40)","v":""},null,null,null,0.49999999999999994]
[null,null,null,3," ",null,null,null,{"$f":"IF($C$39*H41=0,\"\",$C$39*H41)","v":""},null,null,null,0.55000000000000004]
[null,null,null,4," ",null,null,null,"",null,null,null,0.60000000000000009]
[null,null,null,5," ",null,null,null,"",null,null,null,0.65]
[null,null,null,6," ",null,null,null,"",null,null,null,0.70000000000000007]
[null,null,null,"Total",null,null,null,{"$f":"SUM(H39:H44)","v":0},{"$f":"SUM(I39:I44)","v":0},null,null,null,0.75]
[null,"TOTAL",{"$f":"SUM(C17:C45)","v":0.15000000000000002},null,null,null,null,null,{"$f":"I45+I38+I32+I24+I20","v":0},null,null,null,0.8]
[null,null,null,null,null,null,null,null,null,null,null,null,0.85]
[null,null,null,null,null,null,null,null,null,null,null,null,0.9]
[null,"Basic Functions","•",null,null,null,null,null,null,null,null,null,0.95]
[null,null,"•",null,null,null,null,null,null,null,null,null,1]
[null,null,"•"]
[null,null,"•"]
[null,null,"•"]
[null,null,"•"]
[null,null,null,null,null,null,null,null,null,null,null,null,"LLC “WINNER IMPORTS UKRAINE, LTD”"]
[null,"Comments","•",null,null,null,null,null,null,null,null,null,"LLC “WINNER AUTOMOTIVE”"]
[null,null,"•",null,null,null,null,null,null,null,null,null,"LLC “WINNER CONSTRUCTION”"]
[null,null,"•",null,null,null,null,null,null,null,null,null,"LLC “WINNER PCKA”"]
[null,null,null,null,null,null,null,null,null,null,null,null,"LLC “WINNER REBOR”"]
[null,null,null,null,null,null,null,null,null,null,null,null,"LLC“WINNER FACILITY MANAGEMENT” "]
[null,"LINE SUPERVISOR",null,null,null,"HEAD OF DEPARTMENT"]
[null,null,null,null,null,null,null,null,null,null,null,"_","Manual_Worker","Professional","Manager"]
[null,null,null,null,null,null,null,null,null,null,null,null,"Communication skills ","Communication skills ","Organization and planning "]
[null,"Signature                                            ","Date",null,null,"Signature                                            ","Date",null,null,null,null,null,"Influence and persuasion ","Influence and persuasion ","Decision-making "]
[null,"HR DIRECTOR",null,null,null,{"$f":"IF(Opening_reason=\"New Position\",\"GENERAL DIRECTOR/DEPUTY GENERAL DIRECTOR\",\"\")","v":""},null,null,null,null,null,null,"Interaction ","Interaction ","Team building, management and development "]
[null,null,null,null,null,{"$f":"IF(Opening_reason=\"New Position\",\"Bohdan Kulchytsky/Petro Rondiak\",\"\")","v":""},null,null,null,null,null,null,"Proactiveness","Proactiveness","Delegation and control"]
[null,null,null,null,null,null,null,null,null,null,null,null,"Innovation ","Innovation ","Leadership and motivation "]
[null,"Signature                                            ","Date",null,null,{"$f":"IF(Opening_reason=\"New Position\",\"Signature\",\"\")","v":""},{"$f":"IF(Opening_reason=\"New Position\",\"Date\",\"\")","v":""},null,null,null,null,null,"Systems thinking","Systems thinking","Strategic thinking "]
[null,null,null,null,null,null,null,null,null,null,null,null,"Analytical thinking","Analytical thinking"]
[null,null,null,null,null,null,null,null,null,null,null,null,"Detail orientation ","Detail orientation "]
[null,null,null,null,null,null,null,null,null,null,null,null,"Self-organization ","Self-organization "]
[null,null,null,null,null,null,null,null,null,null,null,null,"Self-development ","Self-development "]
[]
[null,null,null,null,null,null,null,null,null,null,null,null,"Professional"]
[null,null,null,null,null,null,null,null,null,null,null,null,"Communication skills "]
[null,null,null,null,null,null,null,null,null,null,null,null,"Influence and persuasion "]
[null,null,null,null,null,null,null,null,null,null,null,null,"Interaction "]
[null,null,null,null,null,null,null,null,null,null,null,null,"Proactiveness"]
[null,null,null,null,null,null,null,null,null,null,null,null,"Innovation "]
[null,null,null,null,null,null,null,null,null,null,null,null,"Systems thinking"]
[null,null,null,null,null,null,null,null,null,null,null,null,"Analytical thinking"]
[null,null,null,null,null,null,null,null,null,null,null,null,"Detail orientation "]
[null,null,null,null,null,null,null,null,null,null,null,null,"Self-organization "]
[null,null,null,null,null,null,null,null,null,null,null,null,"Self-development "]
[]
[null,null,null,null,null,null,null,null,null,null,null,null,{"$f":"M4","v":"Manager"}]
[null,null,null,null,null,null,null,null,null,null,null,null,"Organization and planning "]
[null,null,null,null,null,null,null,null,null,null,null,null,"Decision-making "]
[null,null,null,null,null,null,null,null,null,null,null,null,"Team building, management and development "]
[null,null,null,null,null,null,null,null,null,null,null,null,"Delegation and control"]
[null,null,null,null,null,null,null,null,null,null,null,null,"Leadership and motivation "]
[null,null,null,null,null,null,null,null,null,null,null,null,"Strategic thinking "]
[]
[]
[]
[]
[]
[null,null,null,null,null,null,null,null,null,null,null,null,"Sergiy Rud"]
[null,null,null,null,null,null,null,null,null,null,null,null,"Julia Avdeeva"]
[]
[]
[]
[]
[]
[]
[]
[]
[]
[null,null,null,null,null,null,null,null,null,null,null,null,"Philological"]
[null,null,null,null,null,null,null,null,null,null,null,null,"Technical"]
[null,null,null,null,null,null,null,null,null,null,null,null,"IT/Programming"]
[null,null,null,null,null,null,null,null,null,null,null,null,"Finance"]
[null,null,null,null,null,null,null,null,null,null,null,null,"Logistic"]
[null,null,null,null,null,null,null,null,null,null,null,null,"Economic"]
[null,null,null,null,null,null,null,null,null,null,null,null,"Marketing"]
[null,null,null,null,null,null,null,null,null,null,null,null,"Management"]
[]
[null,null,null,null,null,null,null,null,null,null,null,null,"Yes"]
[null,null,null,null,null,null,null,null,null,null,null,null,"No"]

{"sheet":"Лист1","index":1,"n_rows":0,"n_cols":0,"rows_kept":0,"cut":false,"hidden":false,"merged":[]}